Cogmind - Beta 11.1 @@@ ROGUE MODE // 2022.08.31 @ 00:37:37 Player: Socram Result: Self-destructed Performance ------------- Evolutions (1) 500 Regions Visited (2) 400 Robots Destroyed (7) 35 Value Destroyed (197) 197 Prototype IDs (0) 0 Alien Tech Used (0) 0 Bonus (0) 0 TOTAL SCORE: 1132 Bonus ------- None Cogmind --------- Core Integrity 400/400 Matter 221/300 Energy 250/250 System Corruption 0% Temperature Cool (0) Movement Treading (160) Location -9/Materials Parts ------- > --- POWER (1) -------- Ion Engine > --- PROPULSION (3) --- Light Treads Light Treads > --- UTILITY (2) ------ Heat Sink Small Storage Unit > --- WEAPON (3) ------- Assault Rifle > --- INVENTORY (8) ---- Light Ion Engine Aluminum Leg Beam Rifle Peak State ------------ > --- POWER ------------ Ion Engine > --- PROPULSION ------- Aluminum Leg Aluminum Leg Aluminum Leg > --- UTILITY ---------- Heat Sink Small Storage Unit > --- WEAPON ----------- EM Pulse Gun Assault Rifle Light Assault Rifle > --- INVENTORY -------- Light Ion Engine Light Treads Light Treads [Rating: 9] Favorites ----------- Power Ion Engine Engine Ion Engine Propulsion Aluminum Leg Treads Light Treads Leg Aluminum Leg Utility Small Storage Unit Device Heat Sink Storage Small Storage Unit Weapon Light Assault Rifle Energy Gun EM Pulse Gun Ballistic Gun Light Assault Rifle Build | -11 -10 -9 ------- Run | Scr Mat Mat Slots Evolved 2 | . . 2 Power . | . . . Propulsion 1 | . . 1 Utility . | . . . Weapon 1 | . . 1 Parts Attached 12 | 5 1 6 Power 1 | 1 . . Engine 1 | 1 . . Core . | . . . Reactor . | . . . Propulsion 5 | 2 . 3 Treads 2 | . . 2 Leg 3 | 2 . 1 Wheel . | . . . Hover . | . . . Flight . | . . . Utility 2 | . 1 1 Device 1 | . . 1 Storage 1 | . 1 . Processor . | . . . Hackware . | . . . Protection . | . . . Artifact . | . . . Weapon 4 | 2 . 2 Energy Gun 2 | 1 . 1 Energy Cannon . | . . . Ballistic Gun 2 | 1 . 1 Ballistic Cannon . | . . . Launcher . | . . . Special Weapon . | . . . Impact Weapon . | . . . Slashing Weapon . | . . . Piercing Weapon . | . . . Special Melee Weapon . | . . . Unidentified Prototypes . | . . . Parts Lost 5 | . 1 4 Power . | . . . Propulsion 2 | . . 2 Utility . | . . . Weapon 3 | . 1 2 Highest Loss Streak 4 | . 1 4 To Critical Strikes . | . . . Average Slot Usage (%) 86 | . 83 95 Engine 13 | . 14 11 Leg 27 | . 28 27 Device 2 | . . 11 Storage 13 | . 14 11 Energy Gun 11 | . 12 11 Ballistic Gun 16 | . 14 22 Naked Turns . | . . . Heaviest Build 16 | 8 13 16 Greatest Support 40 | 3 20 40 Greatest Overweight (x) 5 | 2 4 5 Average Overweight (x) . | . . . Largest Inventory Capacity 8 | 5 8 8 Average Capacity 7 | 5 8 8 Most Carried 7 | 5 7 6 Average Carried 4 | 3 5 3 Final Capacity 8 | 5 8 8 Final Carried 7 | 5 7 3 Class Distribution -------------------- 80% | Mutant 19% | Gunner Dominant Class ---------------- Mutant | -10/Materials Gunner | -9/Materials Resources | -11 -10 -9 ----------- Run | Scr Mat Mat Matter Collected 292 | 237 30 25 Remotely . | . . . Salvage Created 214 | . 110 104 Parts 13 | . 8 5 Haulers Intercepted . | . . . Recyclers Shooed . | . . . Parts Field Recycled . | . . . Retrieved Matter . | . . . Parts Self-Destructed . | . . . Prevented . | . . . Kills | -11 -10 -9 ------- Run | Scr Mat Mat Combat Hostiles Destroyed 7 | . 3 4 Guns 6 | . 2 4 AOE 1 | . 1 . Classes Destroyed 3 | . 1 2 Swarmer 3 | . . 3 Grunt 3 | . 3 . Sentry 1 | . . 1 Best Kill Streak 4 | . 2 4 Combat Bots Only 4 | . 2 4 Max Kills in Single Turn 1 | . 1 1 Gunslinging . | . . . Exploded 1 | . 1 . Melee . | . . . Uniques/NPCs Destroyed . | . . . Combat | -11 -10 -9 -------- Run | Scr Mat Mat Damage Taken 630 | . 332 298 Core 92 | . 92 . Absorbed by Shields . | . . . Core Remaining (%) 81 | 100 63 . Volleys Fired 24 | . 8 16 Largest 3 | . 2 3 Hottest 80 | . 60 80 Shots Fired 64 | . 16 48 Gun 64 | . 16 48 Cannon . | . . . Launcher . | . . . Special . | . . . Kinetic 40 | . 8 32 Thermal . | . . . Explosive . | . . . Electromagnetic 24 | . 8 16 Robot Hit Streak 11 | . 8 11 Robot Miss Streak 2 | . 1 2 Penetration Max . | . . . Secondary Targets . | . . . Shots Hit Robots 43 | . 13 30 Core Hits 13 | . 5 8 Critical Kills . | . . . Critical Parts Destroyed . | . . . Critical Strikes 1 | . . 1 Corrupt 1 | . . 1 Melee Attacks . | . . . Impact . | . . . Slashing . | . . . Piercing . | . . . Sneak Attacks . | . . . Combat Hostiles . | . . . Follow-up Attacks . | . . . Damage Inflicted 489 | . 175 314 Guns 441 | . 127 314 Cannons . | . . . Explosions 41 | . 41 . Melee . | . . . Ramming 7 | . 7 . Kinetic 261 | . 41 220 Thermal 41 | . 41 . Explosive . | . . . Electromagnetic 180 | . 86 94 Impact . | . . . Slashing . | . . . Piercing . | . . . Highest Corruption . | . . . Average Corruption . | . . . Corruption Purged . | . . . Corruption Blocked . | . . . Overload Shots . | . . . Overflow Damage . | . . . Projectiles . | . . . Explosions . | . . . Melee . | . . . Knockbacks 1 | . 1 . Impact 1 | . 1 . Kinetic . | . . . Secondary . | . . . Self-Inflicted Damage 38 | . 38 . Shots 1 | . 1 . Rammed . | . . . Targets Rammed 3 | . 3 . Kicked 3 | . 3 . Crushed . | . . . Highest Temperature 166 | . 56 166 Average Temperature 63 | . 26 80 Received Heat Transfer 207 | . 162 45 Siege Activations . | . . . Robots Corrupted . | . . . Combat Hostiles . | . . . Parts Fried . | . . . Impact Corruptions . | . . . Robots Melted . | . . . Combat Hostiles . | . . . Parts Melted . | . . . Heat Transferred 50 | . 50 . Parts Sabotaged . | . . . Parts Stolen . | . . . Parts Stripped . | . . . Power Chain Reactions 1 | . 1 . Missiles Intercepted . | . . . Alert | -11 -10 -9 ------- Run | Scr Mat Mat Peak Influence 153 | . 149 153 Initial 58 | . . 58 Average 68 | . 74 104 Maximum Alert Level . | . . . Low Security (%) 100 | 100 100 100 Level 1 . | . . . Level 2 . | . . . Level 3 . | . . . Level 4 . | . . . Level 5 . | . . . High Security . | . . . Max Security . | . . . Squads Dispatched 3 | . 3 . Investigation 1 | . 1 . Extermination . | . . . Reinforcement 2 | . 2 . Assault . | . . . Garrison . | . . . Intercept . | . . . Searches Triggered . | . . . Construction Impeded . | . . . Haulers Reinforced . | . . . Active Scanning Responses . | . . . Cargo Convoy Interrupts . | . . . Stealth | -11 -10 -9 --------- Run | Scr Mat Mat Distress Signals . | . . . Communications Jammed . | . . . Distress Signals . | . . . Times Spotted 17 | . 8 9 Peak Tracking Total 5 | . 3 5 Tactical Retreats . | . . . Traps | -11 -10 -9 ------- Run | Scr Mat Mat Traps Triggered 1 | . 1 . Indirectly . | . . . Trap Hack Attempts . | . . . Triggered . | . . . Disarmed . | . . . Reprogrammed . | . . . Reused . | . . . Traps Extracted . | . . . Installed . | . . . Triggered . | . . . Machines | -11 -10 -9 ---------- Run | Scr Mat Mat Machines Disabled 2 | . 2 . Max in Single Turn 1 | . 1 . Machines Sabotaged . | . . . Garrisons Compromised . | . . . Overloaded Fab Kills . | . . . Hacking | -11 -10 -9 --------- Run | Scr Mat Mat Machines Accessed . | . . . Terminals . | . . . Fabricators . | . . . Repair Stations . | . . . Recycling Units . | . . . Scanalyzers . | . . . Garrison Access . | . . . Total Hacks . | . . . Successful . | . . . Failed . | . . . Catastrophic . | . . . Database Lockouts . | . . . Manual . | . . . Terminals . | . . . Fabricators . | . . . Repair Stations . | . . . Recycling Units . | . . . Scanalyzers . | . . . Garrison Access . | . . . Terminal Hacks . | . . . Fabricator Hacks . | . . . Repair Station Hacks . | . . . Recycling Unit Hacks . | . . . Scanalyzer . | . . . Garrison Access Hacks . | . . . Unauthorized Hacks . | . . . Terminals . | . . . Fabricators . | . . . Repair Stations . | . . . Recycling Units . | . . . Scanalyzers . | . . . Garrison Access . | . . . Data Cores Recovered . | . . . Used . | . . . Hacking Detections . | . . . Full Trace Events . | . . . Feedback Events . | . . . Feedback Blocked . | . . . Robot Schematics Acquired . | . . . Robots Built . | . . . Authchips . | . . . Time . | . . . Total Robot Build Rating . | . . . Part Schematics Acquired . | . . . Parts Built . | . . . Authchips . | . . . Time . | . . . Total Part Build Rating . | . . . Parts Repaired . | . . . Time . | . . . Parts Recycled . | . . . Recycled Matter . | . . . Retrieved Matter . | . . . Retrieved Components . | . . . Parts Scanalyzed . | . . . Part Schematics Acquired . | . . . Parts Damaged . | . . . Bothacking | -11 -10 -9 ------------ Run | Scr Mat Mat Used RIF Installer . | . . . Robots Hacked . | . . . Non-combat . | . . . Combat . | . . . Robot Hacks Applied . | . . . Relay Couplers Released . | . . . Fabnet Peak Effective % . | . . . Robots Rewired . | . . . Allies Hacked . | . . . Hacks Repelled . | . . . Allies | -11 -10 -9 -------- Run | Scr Mat Mat Total Allies . | . . . Largest Group . | . . . Highest-Rated Group . | . . . Highest-Rated Ally . | . . . Total Orders . | . . . Ally Attacks . | . . . Total Damage . | . . . Kills . | . . . Allies Corrupted . | . . . Allies Melted . | . . . Intel | -11 -10 -9 ------- Run | Scr Mat Mat Robot Analysis Total . | . . . Derelict Logs Recovered . | . . . Drone Launches . | . . . Drone Recoveries . | . . . Exploration | -11 -10 -9 ------------- Run | Scr Mat Mat Turns Passed 454 | 78 271 105 Spaces Moved 247 | 69 145 33 Core 95 | 69 22 4 Treads 2 | . . 2 Legs 150 | . 123 27 Wheels . | . . . Hover . | . . . Flight . | . . . Fastest Speed 50 | 50 120 120 Average Speed 126 | 89 139 144 Slowest Speed 300 | 150 250 300 Overloaded Moves . | . . . Propulsion Burnouts . | . . . Robots Hopped . | . . . Cave-ins Triggered . | . . . Exploration Rate (%) 11 | 5 25 5 Regions Visited 2 Branch Regions . Pre-discovered Areas . | . . . Known Exits Taken . | . . . Unknown Exits Taken 2 | 1 1 . Scrap Searched . | . . . Spaces Dug . | . . . Terrain Destroyed 2 | . 2 . Melee . | . . . Projectile . | . . . AOE 2 | . 2 . Terrain Rammed . | . . . Walls Destroyed . | . . . Machines Disabled . | . . . Actions | -11 -10 -9 --------- Run | Scr Mat Mat Total 343 | 86 199 58 Wait 40 | 3 36 1 Move 245 | 68 144 33 Hop . | . . . Pick Up 16 | 10 5 1 Fast Attach . | . . . Attach 12 | 5 1 6 Detach 1 | . . 1 Swap . | . . . Drop 2 | . 2 . Fire 24 | . 8 16 Melee . | . . . Ram . | . . . Kick 3 | . 3 . Crush . | . . . Escape Stasis . | . . . Rewire . | . . . Trap . | . . . Miscellaneous . | . . . Route ------- -11/Scrapyard -10/Materials -9/Materials History --------- Turn | Location | Event 7 | -11/Scrapyard | Discovered new exit (range 15) 79 | -11/Scrapyard | Entered Materials 307 | -10/Materials | Build established: Mutant 328 | -10/Materials | Discovered new exit (range 15) 350 | -10/Materials | Entered another Materials area 350 | -9/Materials | Evolved 2 slots: Propulsion x1, Weapon x1 455 | -9/Materials | Self-destructed Last Messages --------------- 00328_ EXIT=FOUND 00329_ U-05 Engineer lays Concrete. PARAMETERS=PROPULSION+1,WEAPON+1 Evolving occurs each time the central map of a new depth is reached, but not in branch areas. Your world map route is accessible via Backspace, or the MAP button in the bottom-right corner. LOCATION=UNKNOWN GOAL=ESCAPE 00394_ S-10 Pest destroyed. 00418_ Destroyed Flight Unit. 00418_ S-10 Pest destroyed. 00424_ Critical hit (Burn: +37). 00424_ Aluminum Leg destroyed. 00431_ Y-45 Defender destroyed. 00433_ K-01 Serf collects debris. 00437_ Acquired 13 matter. 00443_ Acquired 12 matter. 00452_ EM Pulse Gun destroyed. 00453_ Lgt. Assault Rifle destroyed. 00454_ Acquired Corrupted Beam Rifle. Map ----- +----------------------------------------------------+ | ?????????????????????????????????????????????????? | | ?????????????????????????????????????????????????? | | ?????????????????????????????????????????????????? | | ?????????????????????????????????????????????????? | | ?????????????????????????????????????????????????? | | ??????????????????????????????????#######????????? | | ??????????????????????????????????# #####????? | | ??????????????????????????????????# ?????? | | ??????????????????????????????????? ??????? | | ??????????????????????????????????? ???????? | | ??????????????????????????????????? #????????? | | ??????????????????????############## #?????????? | | ?????????????????????# """ # #?????????? | | ?????????????????????# "T" """"" # #?????????? | | ?????????????????????# """"" + +?????????? | | ?????????????????????# = """"" # #?????????? | | ?????????????????????# # #?????????? | | ?????????????????????# * # #?????????? | | ?????????????????????##########+########?????????? | | ??????????????????????????????# #????????????????? | | ?????????????######+########### #????????????????? | | ?????????? [% #????????????????? | | ?????????? gs* #????????????????? | | ?????????????############s#######????????????????? | | ??????????????????# =s= #????????????????? | | ??????????????????# @ #????????????????? | | ??????????????????# #????????????????? | | ??????????????????# #????????????????? | | ??????????????????# #????????????????? | | ??????????????????# #????????????????? | | ??????????????????###############????????????????? | | | | | | | | | | | | | | | | | | | | | | | | | | | | | | | | | | | | | | | +----------------------------------------------------+ Best States ------------- Heat Dissipation 28 Energy Generation 10 Energy Capacity 250 Matter Stores 300 Matter Capacity 300 Sight Range 16 Terrain Scan Density 10 Evasion (%) 55 Item Schematics ----------------- None Robot Schematics ------------------ None Fabricated ------------ Nothing Alien Tech Used ----------------- None Achievements -------------- None Challenges ------------ None Game ------ Seed HardenedSpliceRouter Manual? 0 Play Time 00:07:01 Cumulative 11.6 hours Start 2022.08.31 @ 00:31:59 End 2022.08.31 @ 00:37:37 Sessions 1 Manual Loads 0 Difficulty Rogue Special Mode None Game No. 18 Rogue 18 Adventurer 0 Explorer 0 Win Type - Total 0 Types 0/0/0/0/0/0/0/0/0 Lore% 10 Gallery% 17 Achievement% 14 Wizard Run 0 Options --------- ASCII 0 Keyboard 0 Movement Numpad Keybinds 0 Fullscreen 2 Font 24/Smallcaps Map View 76x50 Tactical HUD 1 Map Filters NONE Filters NONE Steam 1 RUN: 6defc648-ac1a-491d-8798-3be1f26b80ba